bitfinex/quotes_ETHUSD_20260120
["timestamp","ask_amount","ask_price","bid_price","bid_amount"]
[1768886342280,0.00080008,3161.6,3161.0,0.94669358]
[1768886342662,0.00080008,3161.6,3160.9,0.00080008]
[1768886342857,0.00080008,3161.6,3161.0,0.492]
[1768886343185,0.00080008,3161.6,3161.1,0.492]
[1768886343392,0.92603203,3161.6,3160.9,0.00080008]
[1768886343609,0.92603203,3161.6,3160.9,0.49280008]
[1768886344095,3.16376184,3161.6,3160.9,0.00080008]
[1768886344271,0.92523195,3161.5,3160.9,0.00080008]
[1768886345857,0.92523195,3161.5,3160.6,0.00080016]
[1768886346210,0.92523195,3161.0,3160.6,0.00080016]
[1768886346370,0.92523195,3161.0,3160.5,0.002]
[1768886346557,0.92603211,3161.0,3160.5,0.002]
[1768886346865,0.92523195,3160.8,3159.9,0.002]
[1768886347067,0.92523195,3160.6,3159.9,0.002]
[1768886350167,0.92523195,3160.6,3160.3,0.002]
[1768886350371,0.00080016,3160.7,3160.3,0.002]
[1768886350568,0.00080016,3161.0,3160.4,0.94669358]
[1768886350789,0.001,3161.2,3160.7,0.94669358]
[1768886351100,0.92523195,3161.1,3160.6,0.00080024]
[1768886351303,1.3342735,3161.1,3160.6,0.00080024]
[1768886352211,0.00080024,3160.7,3160.0,4.11398788]
[1768886352803,0.00080024,3160.7,3160.0,7.27854484]
[1768886353111,0.92603219,3161.0,3160.3,0.9474939]
[1768886353112,0.00080024,3161.0,3160.3,0.9474939]
[1768886354080,0.00080008,3161.6,3160.7,0.94669358]
[1768886354280,0.00080008,3161.6,3160.9,3.16445608]
[1768886354483,0.00080008,3161.6,3161.0,0.94669358]
[1768886354682,0.001,3162.1,3161.2,0.94749374]
[1768886356525,0.001,3162.1,3161.4,0.94669358]
[1768886356677,0.001,3162.1,3161.5,0.492]
[1768886357711,0.001,3162.1,3161.6,0.492]
[1768886358705,0.92623195,3162.1,3161.2,0.00080016]
[1768886358905,0.92603211,3161.6,3160.9,0.00080016]
[1768886359793,0.92523195,3161.2,3160.3,3.65699633]
[1768886359977,0.92523195,3161.2,3160.3,0.49280032]
[1768886360177,0.00080016,3161.3,3160.6,3.16475106]
[1768886360500,0.00080016,3161.3,3160.6,4.83900466]
[1768886360689,0.00080016,3161.3,3160.6,0.72836034]
[1768886361012,0.00080016,3161.3,3160.7,0.94669358]
[1768886361182,0.00080016,3161.6,3160.6,6.82065432]
[1768886361183,0.92603211,3161.6,3160.9,0.00080024]
[1768886361378,0.92523195,3161.5,3160.9,0.00080024]
[1768886364028,0.001,3161.3,3160.9,0.00080024]
[1768886367288,3.16376519,3161.6,3160.9,0.93872428]
[1768886367289,0.00080016,3161.6,3160.9,0.93872428]
[1768886367489,0.97383231,3161.6,3160.9,0.46025828]
[1768886367809,0.97303215,3161.5,3160.9,0.49280024]
[1768886368111,0.97303215,3161.5,3160.9,0.00080024]
[1768886369117,0.97303215,3161.4,3160.9,0.00080024]
[1768886370683,0.00080016,3161.6,3160.9,0.00080024]
[1768886370884,0.41446252,3161.6,3160.9,0.00080024]
[1768886371302,0.97383231,3161.6,3160.9,0.00080024]
[1768886375930,0.97303215,3161.5,3161.2,0.002]
[1768886376119,0.001,3161.3,3161.2,0.002]
[1768886378291,0.00080016,3161.6,3161.2,1.43192404]
[1768886378888,0.00080016,3161.6,3161.3,0.93792404]
[1768886379096,4.13651073,3162.1,3161.3,0.93792404]
[1768886379331,0.97303215,3162.0,3161.3,0.492]
[1768886379750,0.97303215,3161.9,3161.2,0.00280024]
[1768886380505,0.97303215,3161.9,3160.9,0.00280024]
[1768886380709,9.98777666,3162.0,3160.6,0.00080032]
[1768886380710,0.97303215,3161.2,3160.6,0.00080032]
[1768886382225,0.97303215,3161.2,3160.3,0.00080032]
[1768886382226,0.97303215,3160.9,3160.3,0.00080032]
[1768886383132,0.00080032,3161.0,3160.3,0.00080032]
[1768886383622,0.95807211,3161.0,3160.3,0.00080032]
[1768886384199,4.12165995,3161.0,3160.3,0.00080032]
[1768886384407,0.00080032,3161.0,3160.3,0.99055376]
[1768886384926,0.00080024,3161.3,3160.7,0.98975344]
[1768886385523,0.00080024,3161.6,3161.0,0.98975344]
[1768886385745,0.00080024,3161.6,3161.2,0.98975344]
[1768886385950,0.001,3162.1,3161.3,4.15300906]
[1768886386119,0.001,3162.1,3161.4,0.98975344]
[1768886388147,3.16299379,3162.4,3161.5,0.98975344]
[1768886388148,0.0008,3162.4,3161.5,0.98975344]
[1768886388319,0.0008,3162.4,3161.7,0.98975344]
[1768886390256,0.0008,3162.4,3161.8,0.492]
[1768886390555,0.0008,3162.4,3161.8,4.11921339]
[1768886392136,0.0008,3162.4,3161.8,0.95646036]
[1768886392833,0.0008,3162.4,3161.8,4.11919555]
[1768886393351,0.0008,3162.4,3161.8,0.95646036]
[1768886393556,0.0008,3162.4,3161.9,0.492]
[1768886393733,0.0008,3162.4,3161.9,1.00289655]
[1768886394664,0.92858657,3163.0,3162.3,0.00080008]
[1768886394824,0.0008,3163.0,3162.3,0.91778721]
[1768886395024,0.0008,3163.0,3162.5,0.91698713]
[1768886395727,0.001,3163.1,3162.6,0.91778721]
[1768886396127,0.0008,3163.3,3162.6,0.91778721]
[1768886396364,0.0018,3163.6,3162.9,0.91778721]
[1768886396519,0.0018,3163.6,3163.0,0.492]
[1768886397845,0.92958657,3163.6,3163.0,0.492]
[1768886398065,0.92958657,3163.6,3162.9,0.00080008]
[1768886398279,0.92778657,3163.4,3162.9,0.00080008]
[1768886398460,3.16105579,3163.5,3162.6,0.00080008]
[1768886398461,0.92778657,3163.2,3162.6,0.00080008]
[1768886399742,0.92778657,3163.2,3162.3,0.00080008]
[1768886399938,0.92778657,3162.9,3162.3,0.00080008]
[1768886400559,0.00080008,3163.0,3162.3,0.00080008]
[1768886400877,0.00080008,3163.0,3162.3,0.91778721]
[1768886401274,0.00080008,3163.0,3162.3,0.00080008]
[1768886401776,0.92778657,3162.9,3162.3,0.00080008]
[1768886401990,1.33680138,3162.8,3162.3,0.00080008]
[1768886402280,0.92778657,3162.8,3162.3,0.00080008]
[1768886402572,0.001,3162.7,3162.3,0.00080008]
[1768886402751,0.92878657,3162.7,3162.3,0.00080008]
[1768886402953,0.92878657,3162.7,3162.0,0.00280008]
[1768886403158,0.92958665,3162.7,3162.0,0.00280008]
[1768886403347,0.92958665,3162.7,3162.0,3.53104073]
[1768886403547,0.00180008,3162.7,3162.0,4.44802786]
[1768886405876,0.00180008,3162.7,3162.1,0.91698713]
[1768886406055,0.00080008,3163.0,3162.3,0.00080016]
[1768886406268,0.00080008,3163.0,3162.4,0.91698713]
[1768886406758,0.00080008,3163.3,3162.4,0.91698713]
[1768886406962,0.00080008,3163.3,3162.3,0.49280016]
[1768886406963,0.00080008,3163.3,3162.6,0.91778729]
[1768886407947,0.00080008,3163.3,3162.6,0.00080016]
[1768886408143,0.92858665,3163.3,3162.6,0.49280016]
[1768886409601,0.92858665,3163.3,3162.6,0.00080016]
[1768886409894,0.92858665,3163.3,3162.3,0.00080016]
[1768886409895,0.92778657,3162.9,3162.3,0.00080016]
[1768886411093,0.00080016,3163.0,3162.3,0.00080016]
[1768886411393,0.00080016,3163.0,3162.3,0.91778729]
[1768886411595,0.00080016,3163.0,3162.4,0.77344967]
[1768886411786,0.00080016,3163.0,3162.4,1.6904368]
[1768886411961,0.00080016,3163.0,3162.4,4.85251406]
[1768886413903,0.92858673,3163.0,3162.3,0.00080016]
[1768886414068,0.00080016,3163.0,3162.3,0.91778729]
[1768886414464,0.92858673,3163.0,3162.3,0.00080016]
[1768886414965,0.00080016,3163.0,3162.3,0.91778729]
[1768886415166,0.00080016,3163.0,3162.5,0.91698713]
[1768886416394,0.92858673,3163.0,3162.3,0.00280016]
[1768886417295,0.00080016,3163.0,3162.3,0.00280016]
[1768886417471,0.00080016,3163.0,3162.3,0.91978729]
[1768886417671,0.00080016,3163.0,3162.3,4.08199864]
[1768886418078,0.00080016,3163.0,3162.3,0.91978729]
[1768886418375,0.92858673,3163.0,3162.3,0.00280016]
[1768886419797,0.00080016,3163.0,3162.3,0.00280016]
[1768886420502,3.16237201,3163.0,3162.3,0.00280016]
[1768886420668,1.24402377,3162.9,3162.3,0.00280016]
[1768886421696,0.00080016,3163.0,3162.3,0.00280016]
[1768886422603,0.00080016,3163.0,3162.3,0.91978729]
[1768886423099,0.00080008,3163.3,3162.7,0.96618208]
[1768886423298,0.00080008,3163.3,3162.8,0.96618208]
[1768886424304,0.0018,3163.6,3162.8,0.96618208]
[1768886424468,0.41091624,3163.6,3162.9,0.96698224]
[1768886424672,0.0018,3163.6,3163.0,0.492]
[1768886425286,0.0018,3163.6,3163.0,1.45818208]
[1768886426404,0.0018,3163.6,3163.0,0.492]
[1768886426806,0.0018,3163.6,3163.0,1.45818208]
[1768886428194,0.0018,3163.6,3163.1,0.46206306]
[1768886428711,0.0018,3163.6,3163.0,1.45818208]
[1768886429372,0.99054378,3163.6,3162.9,0.00080016]
[1768886429790,0.99054378,3163.6,3162.6,0.00280024]
[1768886429995,0.98874378,3163.2,3162.6,0.00280024]
[1768886430298,0.00080016,3163.3,3162.6,0.36849309]
[1768886430605,0.00080016,3163.3,3162.6,3.16469918]
[1768886430809,0.00080016,3163.3,3162.6,0.00280024]
[1768886431020,0.00080016,3163.3,3162.6,0.49480024]
[1768886431617,0.00080016,3163.3,3162.7,0.96618208]
[1768886432903,0.00080016,3163.3,3162.8,0.96618208]
[1768886433104,0.00080016,3163.3,3162.8,1.74465655]
[1768886433303,0.00080016,3163.3,3162.9,0.492]
[1768886435821,0.00080016,3163.3,3162.6,0.00280024]
[1768886436129,0.00080016,3163.3,3162.8,0.492]
[1768886436321,0.98954394,3163.3,3162.8,0.492]
[1768886437423,0.98954394,3163.3,3162.7,0.492]
[1768886437826,0.98874378,3163.2,3162.6,0.00280024]
[1768886438502,0.98954402,3163.0,3162.4,0.492]
[1768886438704,0.00080024,3163.0,3162.5,4.12821118]
[1768886438908,0.00080024,3163.0,3162.5,0.96618208]
[1768886439229,0.00080024,3163.0,3162.5,4.12823657]
[1768886439430,0.00080024,3163.0,3162.5,0.96618208]
[1768886439728,0.00080024,3163.0,3162.5,4.12820643]
[1768886440226,0.00080024,3163.0,3162.6,0.46202064]
[1768886440807,0.00080024,3163.0,3162.9,0.002]
[1768886441102,0.00180024,3163.0,3162.9,0.002]
[1768886441304,0.99054402,3163.0,3162.5,0.002]
[1768886441926,0.00180024,3163.0,3162.5,0.002]
[1768886443635,0.95555415,3163.0,3162.3,0.492]
[1768886443809,0.00080016,3162.7,3162.4,0.69843598]
[1768886444911,0.00080016,3162.7,3162.3,0.49039936]
[1768886447603,0.00080016,3162.7,3162.3,0.492]
[1768886449251,0.00080016,3162.7,3162.1,3.16241587]
[1768886449399,0.00080016,3162.7,3162.0,0.00080016]
[1768886449400,0.95455407,3162.7,3162.0,0.00080016]
[1768886449604,0.95455407,3162.7,3162.0,0.49280016]
[1768886449803,0.95375391,3162.5,3162.0,0.00080016]
[1768886453339,0.99832825,3162.4,3162.0,0.00080016]
[1768886453533,0.99912841,3162.4,3161.6,0.492]
[1768886454027,0.99912841,3162.4,3162.3,0.002]
[1768886454224,0.99832825,3162.3,3161.6,0.492]
[1768886454433,0.99832825,3162.3,3162.0,0.002]
[1768886455242,0.99832825,3162.3,3161.2,0.70003654]
[1768886455407,0.99832825,3162.1,3161.2,0.0008004]
[1768886457442,0.99832825,3161.9,3161.2,0.0008004]
[1768886459224,0.99832825,3161.9,3161.2,0.70203654]
[1768886459552,0.99832825,3162.3,3161.2,0.70203654]
[1768886459730,0.99832825,3162.3,3161.4,0.70123614]
[1768886459938,0.99832825,3162.3,3161.6,0.70123614]
[1768886460142,0.99832825,3162.3,3161.6,1.19323614]
[1768886460316,0.00080016,3162.4,3161.7,0.70123614]
[1768886461188,0.99912841,3162.4,3161.6,0.492]
[1768886461483,0.99832825,3162.3,3161.6,0.492]
[1768886462945,0.99832825,3162.3,3161.6,4.09053689]
[1768886463341,0.00080016,3162.4,3161.7,0.70123614]
[1768886463881,0.99912841,3162.4,3161.8,0.492]
[1768886464618,0.99832825,3162.3,3161.2,0.70203654]
[1768886464756,0.99832825,3162.1,3161.2,0.0008004]
[1768886465638,0.99832825,3162.1,3161.2,3.16411207]
[1768886465965,0.99832825,3162.1,3161.6,0.002]
[1768886467643,0.99832825,3162.0,3161.6,0.002]
[1768886467846,0.99832825,3161.9,3161.6,0.002]
[1768886468156,0.99832825,3161.9,3161.3,0.002]
[1768886468388,0.99832825,3161.5,3160.9,0.0008004]
[1768886468555,0.99832825,3161.5,3160.0,0.00280024]
[1768886468556,0.99832825,3161.2,3160.0,0.00280024]
[1768886468762,0.99832825,3161.2,3160.0,3.16732572]
[1768886469083,0.99832825,3160.9,3160.0,3.16732572]
[1768886469486,0.0008004,3161.0,3160.2,0.70683694]
[1768886469843,0.0008004,3161.0,3160.3,3.16505687]
[1768886470454,0.0008004,3161.0,3160.5,0.31670569]
[1768886472572,0.0008004,3161.0,3160.3,0.49280032]
[1768886472573,0.99912865,3161.0,3160.3,0.49280032]
[1768886472777,0.99912865,3161.0,3160.3,0.00080032]
[1768886474164,0.99832825,3160.8,3160.3,0.00080032]
[1768886476246,3.16439783,3161.0,3160.3,0.00080032]
[1768886476552,0.99912865,3161.0,3160.3,0.00080032]
[1768886476770,0.0008004,3161.0,3160.3,0.00080032]
[1768886476968,0.0008004,3161.0,3160.4,0.70883694]
[1768886478178,0.0008004,3161.0,3160.7,0.002]
[1768886478578,0.0008004,3161.0,3160.7,0.31860563]
[1768886478781,0.0008004,3161.3,3160.7,0.31860563]
[1768886479385,0.0008004,3161.3,3160.7,1.02544257]
[1768886479798,0.0008004,3161.3,3160.7,0.31860563]
[1768886480370,0.0008004,3161.3,3160.7,3.48244901]
[1768886480569,0.99832825,3161.2,3160.7,0.002]
[1768886480810,0.99832825,3161.2,3160.6,0.00080048]
[1768886482781,0.99832825,3161.1,3160.6,0.00080048]
[1768886483804,0.0008004,3161.3,3160.6,0.00080048]
[1768886484388,0.98006284,3161.2,3160.6,0.00080048]
[1768886484571,0.98006284,3161.1,3160.6,0.00080048]
[1768886486073,0.98006284,3161.0,3160.6,0.00080048]
[1768886487410,0.98006284,3160.9,3160.6,0.00080048]
[1768886490811,0.001,3161.0,3160.6,0.00080048]
[1768886494820,0.98006284,3161.3,3160.9,0.00080048]
[1768886494999,0.39866696,3161.2,3160.9,0.00080048]
[1768886495720,0.98006284,3161.1,3160.9,0.00080048]
[1768886496093,0.98006284,3161.5,3160.9,0.00080048]
[1768886496296,0.0008004,3161.6,3160.9,0.70963742]
[1768886496527,0.0008004,3161.6,3161.0,0.70883694]
[1768886497254,0.0008004,3161.6,3161.1,0.70883694]
[1768886497431,0.0008004,3161.6,3161.2,0.38723009]
[1768886497994,0.0008004,3161.6,3161.2,1.09606703]
[1768886499121,0.0008004,3161.6,3161.2,0.38723009]
[1768886499458,0.0008004,3161.6,3160.9,3.87323268]
[1768886499634,0.98086324,3161.6,3160.9,3.87323268]
[1768886500326,0.98086324,3161.6,3160.9,0.00080048]
[1768886501071,0.98086324,3161.6,3160.9,3.16444031]
[1768886501734,0.0008004,3161.6,3161.0,0.70883694]
[1768886501939,0.0008004,3161.6,3161.2,0.002]
[1768886502772,0.99842924,3161.6,3161.2,0.002]
[1768886505356,0.0008004,3161.6,3161.2,0.002]
[1768886505727,0.0008004,3161.6,3161.2,3.87419262]
[1768886506143,0.001,3162.0,3161.3,0.70883694]
[1768886506350,0.001,3162.0,3161.3,1.09633625]
[1768886506658,0.001,3162.0,3161.3,1.58933625]
[1768886507055,0.001,3162.0,3161.4,0.70883694]
[1768886508055,0.001,3162.0,3161.4,3.87196]
[1768886510236,0.001,3162.0,3161.3,0.38749931]
[1768886510537,0.99862884,3162.0,3161.4,0.493]
[1768886510957,0.99862884,3162.0,3161.2,0.00280048]
[1768886511526,0.99862884,3162.0,3161.2,0.71163742]
[1768886512428,0.99862884,3162.0,3161.2,0.00280048]
[1768886512831,0.99762884,3161.9,3161.2,0.00280048]
[1768886513752,0.001,3161.7,3161.2,0.00280048]
[1768886513954,0.001,3161.7,3161.2,3.60293954]
[1768886515230,0.90984611,3162.1,3161.3,0.70883694]
[1768886515436,0.90784611,3162.1,3161.3,0.70883694]
[1768886516574,0.90984611,3162.0,3161.2,3.60293954]
[1768886516753,0.90984611,3162.0,3161.2,4.31377648]
[1768886517987,0.90984611,3161.9,3161.3,0.493]
[1768886519039,0.90984611,3161.9,3161.3,4.0221665]
[1768886519541,0.90984611,3161.9,3161.3,0.85891419]
[1768886519771,0.90984611,3161.9,3161.3,4.02216064]
[1768886520068,0.90984611,3162.2,3161.4,0.71083694]
[1768886520370,0.90984611,3162.3,3161.4,0.71083694]
[1768886520673,0.90984611,3162.3,3161.3,7.18541626]
[1768886520674,0.90984611,3162.3,3161.6,0.71083694]
[1768886521054,0.90984611,3162.3,3161.7,3.16285542]
[1768886521767,0.00180016,3162.4,3161.8,1.20383694]
[1768886522082,0.90984611,3162.6,3162.0,0.00080024]
[1768886524986,0.90984611,3162.5,3161.5,0.78962532]
[1768886525154,0.91064635,3162.4,3161.5,3.65604879]
[1768886525353,0.90984611,3161.9,3161.5,3.65604879]
[1768886525589,0.90984611,3161.9,3161.2,0.00280048]
[1768886525793,0.90984611,3161.9,3161.4,3.16315271]
[1768886526078,0.90984611,3161.9,3161.5,0.36561527]
[1768886526249,0.90984611,3161.9,3161.5,3.52866871]
[1768886526448,0.001,3162.0,3161.5,3.52866871]
[1768886526673,0.001,3162.0,3161.5,4.39650573]
[1768886527381,0.001,3162.0,3161.5,3.52866871]
[1768886527554,0.001,3162.0,3161.6,0.75596589]
[1768886529293,0.001,3162.0,3161.6,3.91890891]
[1768886529995,0.001,3162.0,3161.6,4.78674593]
[1768886530562,0.001,3162.0,3161.7,0.493]
[1768886531285,0.001,3162.0,3161.7,3.65580532]
[1768886531457,0.001,3162.0,3161.8,0.44117712]
[1768886531657,0.75264635,3162.4,3161.8,0.44117712]
[1768886531890,0.75264635,3162.4,3162.0,0.00080032]
[1768886532776,0.90984611,3162.6,3162.0,0.00080032]
[1768886533591,0.90984611,3162.5,3162.0,0.00080032]
[1768886533955,0.90984611,3162.4,3162.0,0.00080032]
[1768886536978,0.001,3162.2,3162.0,0.00080032]
[1768886537409,0.91084611,3162.2,3162.0,0.00080032]
[1768886538617,0.001,3162.2,3162.0,0.00080032]
[1768886540506,0.91084611,3162.2,3162.0,0.00080032]
[1768886541894,0.90984611,3162.1,3161.2,0.97078641]
[1768886542208,0.40830303,3162.2,3161.2,0.97078641]
[1768886542209,0.001,3162.2,3161.2,0.97078641]
[1768886543510,0.90193387,3162.2,3161.2,0.97078641]
[1768886544319,0.90193387,3162.2,3161.3,3.16325562]
[1768886544533,0.90093387,3162.1,3161.4,0.493]
[1768886545679,0.90093387,3162.1,3161.2,0.00280048]
[1768886545680,0.90093387,3162.0,3161.2,0.00280048]
[1768886546481,0.90093387,3161.9,3161.2,0.00280048]
[1768886548126,0.90093387,3161.9,3161.2,0.95059662]
[1768886548329,0.001,3162.2,3161.4,0.94779614]
[1768886548330,0.90093387,3162.1,3161.4,0.94779614]
[1768886548484,0.001,3162.2,3161.5,0.94779614]
[1768886548829,0.90193387,3162.2,3161.5,0.94979614]
[1768886550283,0.90193387,3162.2,3161.6,0.41129511]
[1768886550921,0.001,3162.2,3161.7,0.94779614]
[1768886553085,0.001,3162.2,3161.7,4.15456873]
[1768886554021,0.001,3162.2,3161.7,0.99172278]
[1768886554199,0.99565489,3162.2,3161.6,0.90429511]
[1768886554914,0.99565489,3162.2,3161.6,1.89601789]
[1768886555113,0.99565489,3162.2,3161.7,0.50610162]
[1768886555313,0.99565489,3162.2,3161.6,0.493]
[1768886556315,0.99565489,3162.2,3161.6,1.48472278]
[1768886560789,0.99565489,3162.2,3161.9,0.002]
[1768886562583,0.93945468,3162.1,3161.2,0.9435577]
[1768886562787,0.93945468,3162.1,3161.3,3.65621034]
[1768886562983,0.93945468,3162.1,3161.4,0.4599768]
[1768886564507,0.93945468,3162.1,3161.4,4.56387314]
[1768886564812,0.93945468,3162.1,3161.5,0.94075722]
[1768886566810,0.93945468,3162.1,3161.5,4.10378531]
[1768886567923,0.001,3162.2,3161.6,0.94075722]
[1768886568315,0.001,3162.2,3161.7,0.94075722]
[1768886568515,0.94045468,3162.2,3161.7,0.94075722]
[1768886568916,0.94045468,3162.2,3161.5,0.94075722]
[1768886572548,0.94045468,3162.2,3161.5,4.10374032]
[1768886572712,0.94045468,3162.2,3161.6,0.94075722]
[1768886573033,0.94045468,3162.2,3161.8,0.94275722]
[1768886574137,0.001,3162.2,3161.8,0.94275722]
[1768886574602,0.93184343,3162.2,3161.8,0.94275722]
[1768886574802,0.93184343,3162.2,3161.8,0.002]
[1768886576955,0.001,3162.2,3161.8,0.90855959]
[1768886577151,0.001,3162.2,3161.8,0.45854814]
[1768886577354,0.001,3162.2,3161.9,0.90655959]
[1768886580444,0.93164359,3162.7,3162.1,0.90655959]
[1768886580641,0.93164359,3162.7,3162.2,0.90655959]
[1768886581543,0.00080016,3162.7,3162.3,0.90655959]
[1768886581718,0.00180024,3163.0,3162.5,0.90655959]
[1768886581922,0.00180024,3163.0,3162.6,0.90655959]
[1768886582125,0.93264367,3163.0,3162.5,0.494]
[1768886582319,0.93084343,3162.8,3162.3,0.00080024]
[1768886584421,0.93264367,3163.0,3162.3,0.90735983]
[1768886584665,0.93264367,3163.0,3162.4,0.90655959]
[1768886586033,0.001,3162.7,3162.4,4.06867386]
[1768886586374,0.001,3162.7,3162.5,0.44351983]
[1768886587254,0.001,3162.7,3162.5,1.35007942]
[1768886587674,0.00180024,3163.0,3162.6,0.90655959]
[1768886587974,0.00080016,3163.3,3162.6,0.49480032]
[1768886587975,0.93164359,3163.3,3162.6,0.49480032]
[1768886588284,0.93164359,3163.3,3162.7,1.09104756]
[1768886588876,0.0008,3163.6,3163.0,0.90655959]
[1768886589188,0.0008,3163.6,3163.2,0.90655959]
[1768886590081,0.0008,3163.6,3163.3,4.06781524]
[1768886590383,0.0008,3164.0,3163.3,4.06781524]
[1768886590384,0.0008,3164.0,3163.5,0.90655959]
[1768886590595,0.0008,3164.0,3163.6,0.90655959]
[1768886591375,0.93164343,3164.0,3163.5,0.494]
[1768886591876,0.93164343,3164.0,3163.5,1.40055959]
[1768886592252,0.93164343,3164.0,3163.5,0.494]
[1768886593213,0.93164343,3164.0,3163.5,1.89749826]
[1768886593412,0.93164343,3164.0,3163.5,0.99093867]
[1768886593622,0.93164343,3164.0,3163.5,0.494]
[1768886593775,0.93164343,3164.0,3163.3,0.49480008]
[1768886594507,0.93164343,3164.0,3163.3,3.65603473]
[1768886594710,0.93164343,3164.0,3163.3,0.49480008]
[1768886595100,0.93164343,3164.0,3163.3,0.00080008]
[1768886595302,0.93084343,3163.9,3163.3,4.5626106]
[1768886596079,0.93084343,3163.9,3163.3,1.40135967]
[1768886596415,0.93084343,3163.9,3163.3,0.49480008]
[1768886597410,0.93084343,3163.9,3163.4,0.90655959]
[1768886597808,0.93084343,3163.9,3163.4,1.40055959]
[1768886598016,0.0008,3164.0,3163.5,0.90655959]
[1768886598587,0.93084343,3163.9,3163.3,0.00080008]
[1768886598882,0.93084343,3163.9,3163.4,0.494]
[1768886600785,0.93084343,3163.9,3163.4,1.40055959]
[1768886600991,0.93084343,3163.9,3163.4,4.56171142]
[1768886601518,0.93084343,3163.9,3163.4,1.40055959]
[1768886602118,0.93084343,3163.9,3163.4,4.56168748]
[1768886602305,0.93084343,3163.9,3163.4,5.33414986]
[1768886602707,0.0008,3164.0,3163.5,0.90655959]
[1768886603116,0.97203215,3164.0,3163.5,0.90655959]
[1768886603840,0.97203215,3164.0,3163.4,5.36384813]
[1768886603994,0.97203215,3164.0,3163.5,0.9362578]
[1768886604194,0.97203215,3164.0,3163.6,0.53638481]
[1768886604394,0.0008,3164.0,3163.6,1.47264261]
[1768886604604,0.0008,3164.0,3163.7,0.9362578]
[1768886604832,0.0008,3164.3,3163.9,0.9362578]
[1768886605330,0.97203215,3164.3,3163.9,0.9362578]
[1768886605621,0.97203215,3164.3,3163.9,0.45910245]
[1768886607128,0.0008,3164.3,3164.0,0.9362578]
[1768886607692,0.97123215,3164.5,3164.0,0.9362578]
[1768886607895,0.0008,3164.9,3164.3,0.9362578]
[1768886608107,0.97203215,3164.9,3164.4,0.494]
[1768886608840,0.97203215,3164.9,3164.5,0.494]
[1768886609696,0.97203215,3164.9,3164.2,0.00080008]
[1768886609900,0.97123215,3164.8,3164.2,0.00080008]
[1768886610099,0.97123215,3164.7,3164.2,0.00080008]
[1768886610937,0.97123215,3164.6,3163.9,0.00080008]
[1768886611135,0.97123215,3165.8,3164.9,0.9362578]
[1768886611375,0.97123215,3165.7,3164.8,1.4302578]
[1768886611653,0.97123215,3165.7,3165.0,0.9362578]
[1768886613253,0.97123215,3165.7,3164.5,0.00080008]
[1768886613427,0.97123215,3165.4,3164.5,0.00080008]
[1768886614315,0.97123215,3165.3,3164.5,0.00080008]
[1768886614717,0.97123215,3165.5,3164.5,0.93705788]
[1768886615752,0.97123215,3165.5,3164.7,0.9362578]
[1768886615932,0.97123215,3165.5,3164.7,1.4302578]
[1768886616260,0.97123215,3165.5,3164.7,0.494]
[1768886617855,0.97123215,3165.5,3164.7,3.65382421]
[1768886620650,0.97123215,3165.5,3164.7,1.4302578]
[1768886620850,0.97123215,3164.9,3164.2,0.00080016]
[1768886621041,0.97123215,3164.7,3164.2,0.00080016]
[1768886623635,0.94992979,3164.6,3164.2,0.00080016]
[1768886623829,0.94992979,3164.4,3163.9,0.00080016]
[1768886624553,0.94992979,3164.1,3163.6,0.00080008]
[1768886630464,0.00080016,3164.3,3162.7,0.002]
[1768886630465,0.94992979,3163.9,3162.7,0.002]
[1768886630669,0.00080008,3163.6,3163.1,0.9545401]
[1768886630957,0.00080008,3163.6,3163.2,0.9545401]
[1768886633155,0.00080008,3163.6,3163.3,0.93075806]
[1768886634831,0.00080008,3163.6,3163.1,0.93075806]
[1768886635138,0.00080008,3163.6,3163.1,1.34006358]
[1768886635335,0.00080008,3163.6,3163.1,0.93075806]
[1768886640234,0.00080008,3163.6,3163.2,0.93075806]
[1768886644841,0.00080008,3163.6,3163.0,1.42475806]
[1768886645036,0.00080008,3163.6,3163.0,0.93075806]
[1768886645368,0.00080008,3163.6,3163.0,1.42475806]
[1768886645562,0.00080008,3163.6,3163.1,0.93075806]
[1768886656173,0.00080008,3163.6,3162.9,0.9315583]
[1768886656390,3.55666323,3163.6,3162.9,0.00080024]
[1768886656549,0.35574633,3163.5,3162.9,0.00080024]
[1768886656979,3.55586315,3163.3,3162.7,0.002]
[1768886657181,3.55666339,3163.3,3162.7,0.002]
[1768886657777,3.16135558,3163.2,3162.6,0.00080032]
[1768886657981,0.00080024,3163.3,3162.6,0.93155838]
[1768886658281,0.00080008,3163.6,3163.0,0.93075806]
[1768886659088,0.00080008,3163.6,3163.3,0.93075806]
[1768886660059,0.00080008,3163.6,3163.2,0.002]
[1768886660258,0.35574633,3163.5,3163.2,0.002]
[1768886662273,0.00080008,3163.6,3163.2,0.002]
[1768886665282,0.00080008,3163.6,3163.2,0.91966778]
[1768886667622,0.00080008,3163.6,3163.3,0.91766778]
[1768886668392,0.00080008,3164.0,3163.4,0.91766778]
[1768886668556,0.00080008,3164.0,3163.5,3.16105579]
[1768886668756,0.00080008,3164.0,3163.7,0.91766778]
[1768886668973,0.00080016,3164.3,3163.7,0.91766778]
[1768886669380,0.00080016,3164.3,3163.9,0.91766778]
[1768886671995,0.00260016,3164.2,3163.7,0.91766778]
[1768886672197,0.00080016,3164.3,3163.7,0.91766778]
[1768886672397,0.00080016,3164.3,3163.8,0.91766778]
[1768886672697,0.00080016,3164.3,3164.0,0.91766778]
[1768886673199,0.00080016,3164.6,3164.1,0.91766778]
[1768886675868,0.00080016,3164.6,3164.0,0.91766778]
[1768886676070,0.00080016,3164.6,3164.1,3.16044182]
[1768886676282,0.00080016,3164.6,3164.3,0.91766778]
[1768886676881,0.00080008,3164.9,3164.3,0.91766778]
[1768886677405,0.00500056,3164.9,3164.3,0.91766778]
[1768886677812,0.00420048,3164.8,3164.3,0.91766778]
[1768886677973,0.00420048,3164.6,3164.0,0.91766778]
[1768886678173,0.00500072,3164.6,3164.0,0.91766778]
[1768886680792,0.67686734,3164.6,3164.0,0.91766778]
[1768886681012,3.55388019,3164.5,3164.0,0.91766778]
[1768886681174,3.55388019,3164.5,3163.9,0.00080024]
[1768886681175,0.00420048,3164.4,3163.9,0.00080024]
[1768886681682,0.00420048,3164.4,3163.6,0.91846794]
[1768886681883,0.00420048,3164.2,3163.6,0.91846794]
[1768886683674,0.00420048,3164.1,3163.6,0.00080016]
[1768886683914,0.00420048,3164.1,3163.6,0.93924903]
[1768886684204,0.00420048,3164.1,3163.9,0.002]
[1768886684985,0.00420048,3164.1,3163.6,0.93924903]
[1768886685192,0.00420048,3164.0,3163.6,0.93924903]
[1768886686313,0.00180024,3164.3,3163.7,0.93844887]
[1768886687022,0.00180024,3164.3,3163.8,0.93844887]
[1768886688920,0.00180024,3164.3,3163.9,0.93844887]
[1768886689229,3.55468027,3164.9,3163.9,0.93844887]